fUST/lending_fUST_20250718
["ID","MTS","AMOUNT","RATE_DAILY","PERIOD"]
[372874764,1752787855109,-460.0,0.00021173,2]
[372874765,1752787855119,-1186.63,0.00021173,2]
[372874766,1752787855128,-1406.18,0.00021173,2]
[372874767,1752787855137,-460.0,0.00021173,2]
[372874768,1752787855148,-460.0,0.00021174,2]
[372874769,1752787855157,-460.0,0.00021174,2]
[372874770,1752787855166,-527.91,0.00021174,2]
[372874771,1752787855175,-743.69,0.00021174,2]
[372874772,1752787855186,-488.85,0.00021174,2]
[372874773,1752787855196,-603.96,0.00021175,2]
[372874774,1752787855205,-289.92,0.00021175,2]
[372874775,1752787855214,-2558.1,0.00021175,2]
[372874776,1752787855224,-902.37,0.00021175,2]
[372874777,1752787855233,-460.0,0.00021175,2]
[372874778,1752787855242,-460.0,0.00021175,2]
[372874779,1752787855251,-858.09,0.00021175,2]
[372874780,1752787855260,-460.0,0.00021176,2]
[372874781,1752787855270,-860.36,0.00021176,2]
[372874782,1752787855279,-842.54,0.00021176,2]
[372874783,1752787855289,-460.0,0.00021177,2]
[372874784,1752787855299,-508.89,0.00021177,2]
[372874785,1752787855308,-460.0,0.00021177,2]
[372874786,1752787855318,-797.17,0.00021177,2]
[372874787,1752787855327,-1497.90809595,0.00021208,2]
[372874788,1752787855338,-166.83,0.0002134,2]
[372874789,1752787855535,-910.41,0.00021447,2]
[372874790,1752787855544,-1267.88,0.00021447,2]
[372874791,1752787855555,-957.69,0.00021447,2]
[372874792,1752787855568,-460.0,0.00021447,2]
[372874793,1752787855578,-1186.63,0.00021447,2]
[372874794,1752787855587,-128.13009693,0.00021447,2]
[372874795,1752787855661,-460.0,0.00016516,2]
[372874796,1752787855671,-460.0,0.00016516,2]
[372874797,1752787855680,-460.0,0.00016517,2]
[372874798,1752787855689,-460.0,0.0001679,2]
[372874799,1752787855699,-460.0,0.00016791,2]
[372874800,1752787855708,-484.23,0.00018162,2]
[372874801,1752787855717,-484.23,0.00018436,2]
[372874802,1752787855726,-1278.04990307,0.00021447,2]
[372874803,1752787855735,-552.09526926,0.00021447,2]
[372874804,1752787855744,-460.0,0.00021448,2]
[372874805,1752787855754,-460.0,0.00021448,2]
[372874806,1752787855762,-527.91,0.00021448,2]
[372874807,1752787855771,-743.69,0.00021448,2]
[372874808,1752787855779,-488.85,0.00021448,2]
[372874809,1752787855788,-2558.1,0.00021449,2]
[372874810,1752787855797,-902.37,0.00021449,2]
[372874811,1752787855805,-460.0,0.00021449,2]
[372874812,1752787855814,-460.0,0.00021449,2]
[372874813,1752787855823,-858.09,0.00021449,2]
[372874814,1752787855832,-460.0,0.0002145,2]
[372874815,1752787855840,-860.36,0.0002145,2]
[372874816,1752787855849,-842.54,0.0002145,2]
[372874817,1752787855858,-460.0,0.00021451,2]
[372874818,1752787855868,-508.89,0.00021451,2]
[372874819,1752787855878,-460.0,0.00021451,2]
[372874820,1752787855887,-797.17,0.00021451,2]
[372874821,1752787855896,-2740.63491796,0.00021684,2]
[372874822,1752787855904,-910.41,0.00021721,2]
[372874823,1752787855914,-1267.88,0.00021721,2]
[372874824,1752787855923,-957.69,0.00021721,2]
[372874825,1752787855935,-460.0,0.00021721,2]
[372874826,1752787855944,-1186.63,0.00021721,2]
[372874827,1752787855954,-1406.18,0.00021721,2]
[372874828,1752787855963,-151.0,0.00021722,2]
[372874829,1752787855973,-177.931516,0.00021722,2]
[372874830,1752787855982,-281.69,0.00021722,2]
[372874831,1752787855992,-460.0,0.00021722,2]
[372874832,1752787856002,-527.91,0.00021722,2]
[372874833,1752787856012,-743.69,0.00021722,2]
[372874834,1752787856021,-488.85,0.00021722,2]
[372874835,1752787856031,-2558.1,0.00021723,2]
[372874836,1752787856040,-902.37,0.00021723,2]
[372874837,1752787856050,-460.0,0.00021723,2]
[372874838,1752787856061,-460.0,0.00021723,2]
[372874839,1752787856072,-858.09,0.00021723,2]
[372874840,1752787856081,-460.0,0.00021724,2]
[372874841,1752787856091,-860.36,0.00021724,2]
[372874842,1752787856103,-842.54,0.00021724,2]
[372874843,1752787856113,-460.0,0.00021725,2]
[372874844,1752787856122,-508.89,0.00021725,2]
[372874845,1752787856132,-410.18038512,0.00021725,2]
[372874846,1752787856142,-797.17,0.00021725,2]
[372874847,1752787856152,-151.0,0.00021918,2]
[372874848,1752787856161,-151.0,0.00021918,2]
[372874849,1752787856171,-151.0,0.00021918,2]
[372874850,1752787856181,-151.0,0.00021918,2]
[372874851,1752787856191,-150.0,0.00021918,2]
[372874852,1752787856201,-910.41,0.00021995,2]
[372874853,1752787856211,-1267.88,0.00021995,2]
[372874854,1752787856220,-957.69,0.00021995,2]
[372874855,1752787856231,-367.84754198,0.00021995,2]
[372874856,1752787856241,-1186.63,0.00021995,2]
[372874857,1752787856251,-1406.18,0.00021995,2]
[372874858,1752787856261,-272.57383468,0.00021996,2]
[372874859,1752787856270,-527.91,0.00021996,2]
[372874860,1752787856280,-743.69,0.00021996,2]
[372874861,1752787856289,-488.85,0.00021996,2]
[372874862,1752787856298,-2558.1,0.00021997,2]
[372874863,1752787856308,-902.37,0.00021997,2]
[372874864,1752787856317,-460.0,0.00021997,2]
[372874865,1752787856327,-460.0,0.00021997,2]
[372874866,1752787856337,-858.09,0.00021997,2]
[372874867,1752787856346,-460.0,0.00021998,2]
[372874868,1752787856355,-860.36,0.00021998,2]
[372874869,1752787856365,-842.54,0.00021998,2]
[372874870,1752787856374,-460.0,0.00021999,2]
[372874871,1752787856383,-508.89,0.00021999,2]
[372874872,1752787856392,-797.17,0.00021999,2]
[372874873,1752787856401,-12541.76679063,0.00022,7]
[372874874,1752787856413,-3038.38320937,0.00022,7]
[372874875,1752787856423,-3808.45,0.00022,7]
[372874876,1752787856435,-3220.000001,0.00022,2]
[372874877,1752787856444,-151.0,0.00022,7]
[372874878,1752787856453,-151.0,0.00022,7]
[372874879,1752787856462,-226.14886,0.00022,7]
[372874880,1752787856471,-12607.95677342,0.00022,7]
[372874881,1752787856481,-1710.35,0.00022,7]
[372874882,1752787856490,-27526.69501501,0.00022,2]
[372874883,1752787858488,-12091.83498499,0.00022,2]
[372874884,1752787858497,-154.0,0.00022,2]
[372874885,1752787858507,-223.0315306,0.00022018,2]
[372874886,1752787858516,-910.41,0.00022269,2]
[372874887,1752787858525,-1267.88,0.00022269,2]
[372874888,1752787858534,-957.69,0.00022269,2]
[372874889,1752787858543,-1186.63,0.00022269,2]
[372874890,1752787858553,-679.15321941,0.00022269,2]
[372874891,1752787858569,-484.23,0.0001871,2]
[372874892,1752787858579,-727.02678059,0.00022269,2]
[372874893,1752787858588,-151.0,0.0002227,7]
[372874894,1752787858597,-151.0,0.0002227,7]
[372874895,1752787858606,-151.0,0.0002227,7]
[372874896,1752787858615,-486.89344338,0.0002227,2]
[372874897,1752787858677,2608.62355679,0.000165,2]
[372874898,1752787858702,2391.37644321,0.000165,2]
[372874899,1752787859613,-460.0,0.00016516,2]
[372874900,1752787859624,-266.59270214,0.00016519,2]
[372874901,1752787859634,-460.0,0.0001679,2]
[372874902,1752787859644,-460.0,0.00017065,2]
[372874903,1752787859653,-500.0,0.00017066,2]
[372874904,1752787859663,-160.0,0.00018054,2]
[372874905,1752787859672,-484.23,0.00018984,2]
[372874906,1752787859682,-484.23,0.00019258,2]
[372874907,1752787859694,-484.23,0.00019532,2]
[372874908,1752787859703,-484.23,0.00019806,2]
[372874909,1752787859713,-484.23,0.0002008,2]
[372874910,1752787859723,-484.23,0.00020354,2]
[372874911,1752787859733,-484.23,0.00020628,2]
[372874912,1752787859742,-484.23,0.00020902,2]
[372874913,1752787859751,-484.23,0.00021176,2]
[372874914,1752787859760,-230.0,0.00021736,2]
[372874915,1752787859770,-41.01655662,0.0002227,2]
[372874916,1752787859780,-743.69,0.0002227,2]
[372874917,1752787859789,-488.85,0.0002227,2]
[372874918,1752787859798,-2558.1,0.00022271,2]
[372874919,1752787859807,-902.37,0.00022271,2]
[372874920,1752787859816,-460.0,0.00022271,2]
[372874921,1752787859825,-460.0,0.00022271,2]
[372874922,1752787859834,-858.09,0.00022271,2]
[372874923,1752787859843,-531.8280298,0.00022272,2]
[372874924,1752787859853,-860.36,0.00022272,2]
[372874925,1752787859862,-842.54,0.00022272,2]
[372874926,1752787859871,-172.24,0.00022273,2]
[372874927,1752787859880,-508.89,0.00022273,2]
[372874928,1752787859890,-797.17,0.00022273,2]
[372874929,1752787859899,-250.27,0.0002235,2]
[372874930,1752787859909,-161.47,0.00022436,2]
[372874931,1752787859919,-300.0,0.00022466,2]
[372874932,1752787859928,-1118.25,0.000225,2]
[372874933,1752787859939,-910.41,0.00022543,2]
[372874934,1752787859948,-1267.88,0.00022543,2]
[372874935,1752787859957,-957.69,0.00022543,2]
[372874936,1752787859967,-1186.63,0.00022543,2]
[372874937,1752787859976,-1406.18,0.00022543,2]
[372874938,1752787859986,-527.91,0.00022544,2]
[372874939,1752787859995,-743.69,0.00022544,2]
[372874940,1752787860004,-488.85,0.00022544,2]
[372874941,1752787860014,-2558.1,0.00022545,2]
[372874942,1752787860023,-902.37,0.00022545,2]
[372874943,1752787860033,-460.0,0.00022545,2]
[372874944,1752787860043,-414.14,0.00022545,2]
[372874945,1752787860053,-858.09,0.00022545,2]
[372874946,1752787860065,-860.36,0.00022546,2]
[372874947,1752787860075,-842.54,0.00022546,2]
[372874948,1752787860085,-508.89,0.00022547,2]
[372874949,1752787860094,-797.17,0.00022547,2]
[372874950,1752787860104,-910.6,0.00022816,2]
[372874951,1752787860115,-1268.01,0.00022816,2]
[372874952,1752787860124,-957.7,0.00022816,2]
[372874953,1752787860135,-1186.71,0.00022816,2]
[372874954,1752787860145,-1406.25,0.00022816,2]
[372874955,1752787860155,-527.94,0.00022818,2]
[372874956,1752787860166,-743.72071556,0.00022818,2]
[372874957,1752787860176,-489.08,0.00022818,2]
[372874958,1752787860187,-2558.12,0.00022819,2]
[372874959,1752787860197,-902.49,0.00022819,2]
[372874960,1752787860206,-449.21,0.00022819,2]
[372874961,1752787860215,-858.22,0.00022819,2]
[372874962,1752787860224,-860.58,0.0002282,2]
[372874963,1752787860233,-842.72,0.0002282,2]
[372874964,1752787860243,-508.97,0.00022821,2]
[372874965,1752787860253,-797.31,0.00022821,2]
[372874966,1752787860262,-729.33,0.00022909,6]
[372874967,1752787860272,-2200.0,0.00022966,2]
[372874968,1752787860282,-790.0,0.00022999,2]
[372874969,1752787860292,-729.34,0.00023009,3]
[372874970,1752787860302,-450.0,0.00023014,2]
[372874971,1752787860311,-790.0,0.00023049,2]
[372874972,1752787860321,-151.0,0.0002305,7]
[372874973,1752787860331,-790.0,0.00023109,2]
[372874974,1752787860340,-500.0,0.00023156,2]
[372874975,1752787860349,-2740.63491796,0.00023171,2]
[372874976,1752787860359,-790.0,0.00023199,2]
[372874977,1752787860368,-1710.35,0.000232,7]
[372874978,1752787860378,-39618.53,0.000232,2]
[372874979,1752787860387,-168.0,0.00023271,2]
[372874980,1752787860397,-168.0,0.00023274,2]
[372874981,1752787860408,-231.28369723,0.00023387,2]
[372874982,1752787860418,-246.0,0.00023398,2]
[372874983,1752787860428,-790.0,0.00023399,2]
[372874984,1752787860441,-790.0,0.00023399,2]
[372874985,1752787860451,-790.0,0.00023399,2]
[372874986,1752787860460,-790.0,0.00023399,2]
[372874987,1752787860470,-790.06,0.00023399,2]
[372874988,1752787860480,-246.0,0.0002341,2]
[372874989,1752787860490,-168.0,0.00023433,2]
[372874990,1752787860499,-168.0,0.00023435,2]
[372874991,1752787860508,-168.0,0.00023441,2]
[372874992,1752787860517,-4000.0,0.0002346,4]
[372874993,1752787860526,-151.0,0.000235,7]
[372874994,1752787860535,-154.804045,0.000235,5]
[372874995,1752787860544,-200.0,0.00023524,30]
[372874996,1752787860553,-200.0,0.00023524,30]
[372874997,1752787860562,-246.0,0.00023556,2]
[372874998,1752787860571,-600.0,0.00023562,2]
[372874999,1752787860580,-246.0,0.00023683,2]
[372875000,1752787860589,-151.0,0.000238,7]
[372875001,1752787860598,-2155.0,0.00023833,2]
[372875002,1752787860607,-968.0,0.00023833,2]
[372875003,1752787860616,-407.0,0.00023833,2]
[372875004,1752787860625,-188.38,0.00023838,2]
[372875005,1752787860634,-15580.15,0.000239,7]
[372875006,1752787860644,-3808.45,0.000239,7]
[372875007,1752787860654,-151.0,0.000239,7]
[372875008,1752787860663,-151.0,0.000239,7]
[372875009,1752787860673,-295.375439,0.000239,7]
[372875010,1752787860683,-151.0,0.000239,7]
[372875011,1752787860694,-295.375439,0.000239,7]
[372875012,1752787860704,-151.0,0.000239,7]
[372875013,1752787860714,-151.0,0.000239,7]
[372875014,1752787860723,-151.0,0.000239,7]
[372875015,1752787860733,-696.378098,0.000239,7]
[372875016,1752787860742,-696.378098,0.000239,7]
[372875017,1752787860750,-151.0,0.000239,7]
[372875018,1752787860759,-151.0,0.000239,6]
[372875019,1752787860767,-151.0,0.000239,7]
[372875020,1752787860776,-278.49268,0.000239,7]
[372875021,1752787860785,-393.25615558,0.000239,2]
[372875022,1752787860795,-168.0,0.0002394,2]
[372875023,1752787860803,-578.16123065,0.00023973,2]
[372875024,1752787860813,-500.0,0.00023973,2]
[372875025,1752787860822,-500.0,0.00023973,2]
[372875026,1752787860832,-151.0,0.0002399,7]
[372875027,1752787860841,-151.0,0.0002399,7]
[372875028,1752787860849,-151.0,0.0002399,7]
[372875029,1752787860858,-151.0,0.0002399,7]
[372875030,1752787860867,-151.0,0.0002399,7]
[372875031,1752787860876,-151.0,0.0002399,7]
[372875032,1752787860885,-215.59244943,0.00024,7]
[372875033,1752787860894,-215.59244943,0.00024,10]
[372875034,1752787860904,-215.59244943,0.00024,10]
[372875035,1752787860914,-151.0,0.00024,7]
[372875036,1752787860923,-500.0,0.00024,2]
[372875037,1752787860932,-839.15451687,0.00024,7]
[372875038,1752787860942,-160.0,0.00024,7]
[372875039,1752787860951,-525.67742785,0.00024,7]
[372875040,1752787860961,-151.0,0.00024065,7]
[372875041,1752787860970,-215.59244943,0.000241,3]
[372875042,1752787860980,-619.27313735,0.0002411,2]
[372875043,1752787860989,-168.0,0.00024149,2]
[372875044,1752787860998,-166.85,0.00024282,2]
[372875045,1752787861008,-1710.35,0.000243,7]
[372875046,1752787861018,-39618.53,0.000243,2]
[372875047,1752787861027,-724.103088,0.00024303,8]
[372875048,1752787861037,-2034.32605,0.00024327,2]
[372875049,1752787861046,-246.0,0.00024365,2]
[372875050,1752787861056,-168.0,0.0002437,2]
[372875051,1752787861068,-151.0,0.0002439,7]
[372875052,1752787861077,-230.0,0.00024405,2]
[372875053,1752787861086,-168.0,0.00024447,2]
[372875054,1752787861095,-166.85,0.00024455,2]
[372875055,1752787861105,-168.0,0.00024498,2]
[372875056,1752787861114,-655.4520006,0.00024521,2]
[372875057,1752787861124,-501.57063564,0.00024521,2]
[372875058,1752787861133,-246.0,0.0002453,2]
[372875059,1752787861144,-31956.09470811,0.00024641,2]
[372875060,1752787861154,-194.03303283,0.00024641,7]
[372875061,1752787861164,-151.0,0.00024641,7]
[372875062,1752787861173,-177.366335,0.00024641,7]
[372875063,1752787861183,-151.0,0.0002465,7]
[372875064,1752787861195,-300.0,0.00024657,2]
[372875065,1752787861205,-300.0,0.00024657,2]
[372875066,1752787861214,-300.0,0.00024657,2]
[372875067,1752787861224,-300.0,0.00024657,2]
[372875068,1752787861233,-182.35652834,0.00024657,2]
[372875069,1752787861243,-800.0,0.00024678,2]
[372875070,1752787861252,-154.804045,0.00024684,3]
[372875071,1752787861261,-246.0,0.00024692,2]
[372875072,1752787861271,-151.0,0.000247,7]
[372875073,1752787861281,-168.0,0.0002471,2]
[372875074,1752787861291,-239.84119403,0.00024756,2]
[372875075,1752787861300,-151.0,0.00024756,2]
[372875076,1752787861310,-500.0,0.00024756,2]
[372875077,1752787861319,-500.0,0.00024756,2]
[372875078,1752787861328,-151.0,0.00024756,2]
[372875079,1752787861338,-500.0,0.00024756,2]
[372875080,1752787861348,-151.0,0.00024756,2]
[372875081,1752787861357,-151.0,0.00024756,2]
[372875082,1752787861367,-158.14412584,0.00024756,2]
[372875083,1752787861376,-500.0,0.00024756,2]
[372875084,1752787861386,-151.0,0.000248,7]
[372875085,1752787861396,-2000.0,0.000248,2]
[372875086,1752787861407,-151.0,0.000248,7]
[372875087,1752787861416,-151.0,0.000248,7]
[372875088,1752787861425,-151.0,0.000248,7]
[372875089,1752787861436,-151.0,0.000248,7]
[372875090,1752787861448,-151.0,0.000248,7]
[372875091,1752787861458,-151.0,0.000248,7]
[372875092,1752787861467,-151.0,0.000248,7]
[372875093,1752787861477,-151.0,0.000248,7]
[372875094,1752787861487,-295.375439,0.000248,7]
[372875095,1752787861496,-151.0,0.000248,7]
[372875096,1752787861505,-295.375439,0.000248,7]
[372875097,1752787861514,-190.14124,0.000248,7]
[372875098,1752787861523,-151.0,0.000248,7]
[372875099,1752787861532,-1493.31494662,0.000248,2]
[372875100,1752787861541,-696.378098,0.000248,7]
[372875101,1752787861550,-696.378098,0.000248,7]
[372875102,1752787861559,-151.0,0.000248,7]
[372875103,1752787861568,-151.0,0.000248,7]
[372875104,1752787861577,-3036.50115849,0.000248,2]
[372875105,1752787861586,-500.0,0.000248,5]
[372875106,1752787861616,-477.73476309,0.000248,5]
[372875107,1752787861626,-500.0,0.00024854,10]
[372875108,1752787861636,-168.0,0.00024857,2]
[372875109,1752787861645,-500.0,0.00024864,10]
[372875110,1752787861655,-500.0,0.00024864,10]
[372875111,1752787861665,-3182.55,0.00024865,5]
[372875112,1752787861675,-3036.50115846,0.00024884,2]
[372875113,1752787861684,-500.0,0.00024889,10]
[372875114,1752787861696,-151.0,0.0002489,7]
[372875115,1752787861705,-151.0,0.0002489,7]
[372875116,1752787861714,-151.0,0.0002489,7]
[372875117,1752787861724,-151.0,0.0002489,7]
[372875118,1752787861733,-151.0,0.0002489,7]
[372875119,1752787861742,-295.375439,0.0002489,7]
[372875120,1752787861752,-210.929115,0.0002489,7]
[372875121,1752787861761,-295.375439,0.0002489,7]
[372875122,1752787861771,-151.0,0.0002489,7]
[372875123,1752787861780,-696.378098,0.0002489,7]
[372875124,1752787861789,-696.378098,0.0002489,7]
[372875125,1752787861799,-151.0,0.0002489,7]
[372875126,1752787861808,-500.0,0.00024899,10]
[372875127,1752787861817,-500.0,0.00024899,10]
[372875128,1752787861826,-500.0,0.00024899,10]
[372875129,1752787861835,-6167.24841496,0.000249,2]
[372875130,1752787861844,-289.368808,0.000249,7]
[372875131,1752787861854,-151.0,0.000249,7]
[372875132,1752787861863,-151.0,0.000249,7]
[372875133,1752787861873,-151.0,0.000249,7]
[372875134,1752787861882,-151.0,0.000249,7]
[372875135,1752787861891,-151.0,0.000249,7]
[372875136,1752787861900,-295.375439,0.000249,7]
[372875137,1752787861910,-295.375439,0.000249,7]
[372875138,1752787861919,-151.0,0.000249,7]
[372875139,1752787861928,-696.378098,0.000249,7]
[372875140,1752787861938,-696.378098,0.000249,7]
[372875141,1752787861946,-151.0,0.000249,7]
[372875142,1752787861956,-151.0,0.000249,7]
[372875143,1752787861966,-1497.90809595,0.000249,2]
[372875144,1752787861975,-12607.95677342,0.000249,3]
[372875145,1752787861984,-12607.95677342,0.000249,10]
[372875146,1752787861993,-839.15451687,0.000249,3]
[372875147,1752787862001,-839.15451687,0.000249,10]
[372875148,1752787862011,-558997.8244817,0.000249,2]
[372875149,1752787862077,-252661.2315293,0.000249,2]
[372875150,1752787862088,-214.44804168,0.000249,3]
[372875151,1752787862097,-160.0,0.000249,3]
[372875152,1752787862108,-160.0,0.000249,10]
[372875153,1752787862119,-525.67742785,0.000249,3]
[372875154,1752787862128,-525.67742785,0.000249,10]
[372875155,1752787862138,-160.0,0.00024933,3]
[372875156,1752787862149,-161.10523437,0.00024933,5]
[372875157,1752787862159,-154.804045,0.00024942,7]
[372875158,1752787862168,-3103.54400563,0.0002495,2]
[372875159,1752787862176,-500.0,0.00024964,10]
[372875160,1752787862187,-3182.55,0.00024965,4]
[372875161,1752787862196,-3036.50115846,0.00024968,2]
[372875162,1752787862206,-500.0,0.00024973,2]
[372875163,1752787862215,-178.0508326,0.00024986,2]
[372875164,1752787862224,-576.958633,0.00024986,2]
[372875165,1752787862236,-429.2412091,0.00024986,2]
[372875166,1752787862246,-159.7589234,0.00024986,2]
[372875167,1752787862255,-576.958633,0.00024986,2]
[372875168,1752787862264,-178.0508326,0.00024986,2]
[372875169,1752787862273,-429.2412091,0.00024986,2]
[372875170,1752787862282,-500.0,0.00024989,10]
[372875171,1752787862291,-5000.0,0.0002499,10]
[372875172,1752787862300,-5000.0,0.0002499,10]
[372875173,1752787862310,-5000.0,0.0002499,10]
[372875174,1752787862319,-3532.93,0.0002499,10]
[372875175,1752787862329,-151.0,0.0002499,7]
[372875176,1752787862338,-151.0,0.0002499,7]
[372875177,1752787862347,-1477.32279896,0.00024999,7]
[372875178,1752787862356,-11737.87561866,0.00025,2]
[372875179,1752787862365,-2035.2941022,0.00025,14]
[372875180,1752787862375,-2617.55073514,0.00025,2]
[372875181,1752787862384,-207.56611281,0.00025,2]
[372875182,1752787862393,-6735.84149883,0.00025,2]
[372875183,1752787862409,-3628.15850117,0.00025,2]
[372875184,1752787862419,-358.37095982,0.00025,2]
[372875185,1752787862428,-500.0,0.00025,2]
[372875186,1752787862440,-300.0,0.00025,30]
[372875187,1752787862449,-103000.7998854,0.00025,2]
[372875188,1752787862458,-200.0,0.00025,7]
[372875189,1752787862468,-600.0,0.00025,2]
[372875190,1752787862477,-10108.012009,0.00025,7]
[372875191,1752787862486,-5929.06254145,0.00025,5]
[372875192,1752787862495,-154.0,0.00025,3]
[372875193,1752787862505,-160.98799967,0.00025,5]
[372875194,1752787862515,-33615.15910148,0.00025,7]
[372875195,1752787862526,-1000.0,0.00025,2]
[372875196,1752787862536,-270181.73925201,0.00025,30]
[372875197,1752787862548,-1189.8778035,0.00025,30]
[372875198,1752787862559,-6335.53251951,0.00025,30]
[372875199,1752787862571,-4847.40997367,0.00025,30]
[372875200,1752787862583,-8804.30015582,0.00025,30]
[372875201,1752787862976,-2381.373709,0.00025,30]
[372875202,1752787862988,-62146.51090063,0.00025,30]
[372875203,1752787862998,-160.0,0.00025,30]
[372875204,1752787863007,-45229.41743107,0.00025,60]
[372875205,1752787863023,-19643.47210006,0.00025,60]
[372875206,1752787873390,5000.0,0.000165,2]
[372875207,1752787892060,5000.0,0.000165,2]
[372875208,1752787896895,17608.62355679,0.00015841,2]
[372875209,1752787896919,8089.64042181,0.00015841,2]
[372875210,1752787900082,150.0,0.00015431,2]
[372875211,1752787907825,5000.0,0.000165,2]
[372875212,1752787922951,5000.0,0.000165,2]
[372875213,1752787938315,5000.0,0.000165,2]
[372875214,1752787946179,166.0,0.00016438,2]
[372875215,1752787951790,400.0,0.00024658,120]
[372875216,1752787954646,5000.0,0.000165,2]
[372875217,1752787968818,150.0,0.00015418,2]
[372875218,1752787972471,1444.35957819,0.000165,2]
[372875219,1752787972497,3555.64042181,0.000165,2]
[372875220,1752787988260,5000.0,0.000165,2]
[372875221,1752788003727,5000.0,0.000165,2]
[372875222,1752788013150,16444.35957819,0.00015642,2]
[372875223,1752788013175,9124.59586771,0.00015642,2]
[372875224,1752788019597,5000.0,0.000165,2]
[372875225,1752788035956,5000.0,0.000165,2]
[372875226,1752788040936,150.0,0.00015423,2]
[372875227,1752788049235,173.23449429,0.00016416,2]
[372875228,1752788053986,5000.0,0.000165,2]
[372875229,1752788063217,5552.169638,0.00015517,2]
[372875230,1752788063241,4447.830362,0.00015517,2]
[372875231,1752788069585,5000.0,0.000165,2]
[372875232,1752788074053,380.131371,0.00013699,2]
[372875234,1752788085253,5000.0,0.000165,2]
[372875235,1752788100407,5000.0,0.000165,2]
[372875236,1752788110559,150.0,0.00015429,2]
[372875237,1752788112539,150.0,0.00020901,30]
[372875238,1752788118881,5000.0,0.000165,2]
[372875239,1752788134087,5000.0,0.000165,2]
[372875240,1752788134403,22.038267,0.00016,2]
[372875241,1752788134428,128.961733,0.00016,2]
[372875242,1752788134736,151.0,0.00015,2]
[372875245,1752788149247,5000.0,0.000165,2]
[372875246,1752788165032,5000.0,0.000165,2]
[372875247,1752788167416,185.16978352,0.00016414,2]
[372875248,1752788180753,150.0,0.00015457,2]
[372875249,1752788182004,5000.0,0.000165,2]
[372875251,1752788198078,5000.0,0.000165,2]
[372875252,1752788199308,185.16978351,0.00016415,2]
[372875253,1752788213335,5000.0,0.000165,2]
[372875254,1752788229896,4199.69869997,0.000165,2]
[372875255,1752788229926,800.30130003,0.000165,2]
[372875272,1752788245151,5000.0,0.000165,2]
[372875273,1752788251244,150.0,0.00015446,2]
[372875274,1752788254700,162.04160599,0.00016415,2]
[372875275,1752788261631,5000.0,0.000165,2]
[372875276,1752788276885,5000.0,0.000165,2]
[372875278,1752788291820,5000.0,0.000165,2]
[372875279,1752788310325,5000.0,0.000165,2]
[372875280,1752788321054,150.0,0.00015439,2]
[372875281,1752788326047,3737.65709398,0.000165,2]
[372875282,1752788326075,1262.34290602,0.000165,2]
[372875283,1752788341297,5000.0,0.000165,2]
[372875284,1752788356503,5000.0,0.000165,2]